bitfinex-derivatives/quotes_BTCF0:USTF0_20250709
["timestamp","ask_amount","ask_price","bid_price","bid_amount"]
[1752039629461,0.56616912,108950.0,108940.0,0.2674393]
[1752039629662,0.58249912,108950.0,108940.0,0.2838493]
[1752039631258,0.26991957,108950.0,108940.0,0.2838493]
[1752039631456,0.58249912,108950.0,108940.0,0.2838493]
[1752039632364,0.26991957,108950.0,108940.0,0.2838493]
[1752039632564,0.26991957,108950.0,108940.0,0.2674393]
[1752039632751,0.52027382,108950.0,108940.0,0.2838493]
[1752039633363,0.50394382,108950.0,108940.0,0.3084593]
[1752039633558,0.52027382,108950.0,108940.0,0.3084593]
[1752039634560,0.52027382,108950.0,108940.0,0.30847521]
[1752039637268,0.26991957,108950.0,108940.0,0.30847521]
[1752039637458,0.52027382,108950.0,108940.0,0.30842199]
[1752039637660,0.25358957,108950.0,108940.0,0.55877624]
[1752039637855,0.26991957,108950.0,108940.0,0.55877624]
[1752039638067,0.25358957,108950.0,108940.0,0.30842199]
[1752039638267,0.26991957,108950.0,108940.0,0.30842199]
[1752039638564,0.22258957,108950.0,108940.0,0.30842199]
[1752039638868,0.23891957,108950.0,108940.0,0.30842199]
[1752039639164,0.23891957,108950.0,108940.0,0.30942199]
[1752039639868,0.52227382,108950.0,108940.0,0.30742199]
[1752039640361,0.27191957,108950.0,108940.0,0.30742199]
[1752039640754,0.52227382,108950.0,108940.0,0.30542199]
[1752039640961,0.52227382,108950.0,108940.0,0.30642199]
[1752039641167,0.27191957,108950.0,108940.0,0.09825119]
[1752039641354,0.57788382,108950.0,108940.0,0.03215119]
[1752039642456,0.57788382,108950.0,108940.0,0.21571199]
[1752039642660,0.57788382,108950.0,108940.0,0.03215119]
[1752039643269,0.57788382,108950.0,108940.0,0.21571199]
[1752039645255,0.57707382,108950.0,108940.0,0.01574119]
[1752039649568,0.82831382,108950.0,108940.0,0.01574119]
[1752039651275,0.85125382,108950.0,108940.0,0.01574119]
[1752039655478,0.60089957,108950.0,108940.0,0.01574119]
[1752039655683,0.85125382,108950.0,108940.0,0.01574119]
[1752039655880,0.60001382,108950.0,108940.0,0.01574119]
[1752039656072,1.09992807,108950.0,108940.0,0.01574119]
[1752039656786,0.84957382,108950.0,108940.0,0.01574119]
[1752039657084,0.93177646,108950.0,108940.0,0.01574119]
[1752039657377,2.10001382,108950.0,108940.0,0.01574119]
[1752039657584,2.34949382,108950.0,108940.0,0.01574119]
[1752039658880,0.84949382,108950.0,108940.0,0.01574119]
[1752039659279,0.59913957,108950.0,108940.0,0.01574119]
[1752039659580,0.84949382,108950.0,108940.0,0.01574119]
[1752039659779,0.34965957,108950.0,108940.0,0.01574119]
[1752039660077,0.29460957,108950.0,108940.0,0.03135119]
[1752039660270,0.24552957,108950.0,108940.0,0.11453428]
[1752039660681,0.51196382,108950.0,108940.0,0.29809508]
[1752039660872,0.26160957,108950.0,108940.0,0.29809508]
[1752039661084,0.26160957,108950.0,108940.0,0.54844933]
[1752039661878,0.26160957,108950.0,108940.0,0.29809508]
[1752039662583,0.26160957,108950.0,108940.0,0.32182508]
[1752039662879,0.26160957,108950.0,108940.0,0.28248508]
[1752039662880,0.24552957,108950.0,108940.0,0.28248508]
[1752039663085,0.24552957,108950.0,108940.0,0.32182508]
[1752039663280,0.26160957,108950.0,108940.0,0.13826428]
[1752039663589,0.51196382,108950.0,108940.0,0.13826428]
[1752039664086,0.24552957,108950.0,108940.0,0.28248508]
[1752039664288,0.24552957,108950.0,108940.0,0.32182508]
[1752039664483,0.49588382,108950.0,108940.0,0.13826428]
[1752039664882,0.26160957,108950.0,108940.0,0.13826428]
[1752039665076,0.51196382,108950.0,108940.0,0.11878119]
[1752039666284,0.26160957,108950.0,108940.0,0.30234199]
[1752039666688,0.26160957,108950.0,108940.0,0.11878119]
[1752039666689,0.51196382,108950.0,108940.0,0.11878119]
[1752039666987,0.51196382,108950.0,108940.0,0.10504]
[1752039667187,0.26160957,108950.0,108940.0,0.2886008]
[1752039667390,0.51196382,108950.0,108940.0,0.10504]
[1752039667591,0.49588382,108950.0,108940.0,0.0657]
[1752039667789,0.24552957,108950.0,108940.0,0.08131]
[1752039668184,0.51196382,108950.0,108940.0,0.08131]
[1752039668790,0.49588382,108950.0,108940.0,0.08131]
[1752039668994,0.51196382,108950.0,108940.0,0.08131]
[1752039670289,0.26160957,108950.0,108940.0,0.2648708]
[1752039670484,0.51196382,108950.0,108940.0,0.2648708]
[1752039670692,0.51196382,108950.0,108940.0,0.08131]
[1752039671506,0.26160957,108950.0,108940.0,0.27876803]
[1752039671692,0.51196382,108950.0,108940.0,0.27876803]
[1752039671997,0.51196382,108950.0,108940.0,0.09516722]
[1752039673201,0.53461382,108950.0,108940.0,0.09516722]
[1752039676817,0.28425957,108950.0,108940.0,0.09516722]
[1752039677222,0.53461382,108950.0,108940.0,0.09516722]
[1752039677715,0.28379957,108950.0,108940.0,0.09606722]
[1752039678018,0.53415382,108950.0,108940.0,0.09606722]
[1752039679011,0.28379957,108950.0,108940.0,0.09606722]
[1752039679211,0.53415382,108950.0,108940.0,0.09606722]
[1752039680420,0.56575382,108950.0,108940.0,0.01585722]
[1752039680610,0.59605382,108950.0,108940.0,0.01585722]
[1752039680810,0.83817382,108950.0,108940.0,0.01585722]
[1752039681328,0.92037646,108950.0,108940.0,0.01585722]
[1752039683328,0.67002221,108950.0,108940.0,0.01585722]
[1752039683518,0.92037646,108950.0,108940.0,0.01585722]
[1752039683823,0.92037646,108950.0,108940.0,0.01597401]
[1752039685026,0.67002221,108950.0,108940.0,0.01597401]
[1752039685224,0.92037646,108950.0,108940.0,0.01597401]
[1752039687829,0.92037646,108950.0,108940.0,0.01603905]
[1752039688630,0.67002221,108950.0,108940.0,0.01603905]
[1752039688831,0.92037646,108950.0,108940.0,0.01603905]
[1752039689930,0.83817382,108950.0,108940.0,0.01603905]
[1752039691031,0.92037646,108950.0,108940.0,0.01603905]
[1752039691227,0.83817382,108950.0,108940.0,0.01603905]
[1752039691627,0.58781957,108950.0,108940.0,0.01603905]
[1752039692030,0.83817382,108950.0,108940.0,0.01603905]
[1752039692334,0.83817382,108950.0,108940.0,0.01606883]
[1752039692833,0.83817382,108950.0,108940.0,0.03011212]
[1752039693132,0.58781957,108950.0,108940.0,0.03011212]
[1752039693328,0.83817382,108950.0,108940.0,0.03011212]
[1752039695231,0.83817382,108950.0,108940.0,0.03011349]
[1752039696849,0.59605382,108950.0,108940.0,0.03011349]
[1752039697038,0.80287382,108950.0,108940.0,0.04662349]
[1752039697237,0.80287382,108950.0,108940.0,0.07682349]
[1752039697532,0.80287382,108950.0,108940.0,0.03011349]
[1752039697741,0.58411957,108950.0,108940.0,0.03011349]
[1752039697945,0.83447382,108950.0,108940.0,0.01606883]
[1752039698138,0.83447382,108950.0,108940.0,0.04636883]
[1752039698335,0.83447382,108950.0,108940.0,0.06287883]
[1752039699030,0.34699957,108950.0,108940.0,0.06287883]
[1752039699236,0.56575382,108950.0,108940.0,0.06287883]
[1752039699533,0.56575382,108950.0,108940.0,0.09377883]
[1752039699934,0.56575382,108950.0,108940.0,0.31473773]
[1752039700127,0.56575382,108950.0,108940.0,0.29822773]
[1752039700539,0.31539957,108950.0,108940.0,0.31473773]
[1752039700736,0.52748382,108950.0,108940.0,0.31473773]
[1752039700926,0.49588382,108950.0,108940.0,0.29822773]
[1752039701131,0.49588382,108950.0,108940.0,0.31473773]
[1752039701331,0.24552957,108950.0,108940.0,0.31473773]
[1752039701631,0.51155382,108950.0,108940.0,0.31473773]
[1752039701934,0.49987957,108950.0,108940.0,0.74865268]
[1752039702132,0.26119957,108950.0,108940.0,0.74865268]
[1752039702734,0.26119957,108950.0,108940.0,0.52245843]
[1752039704143,0.26119957,108950.0,108940.0,0.52221457]
[1752039706444,0.51155382,108950.0,108940.0,0.33865387]
[1752039706647,0.51155382,108950.0,108940.0,0.31449287]
[1752039708043,0.53551382,108950.0,108940.0,0.31449287]
[1752039708244,0.56671382,108950.0,108940.0,0.31449287]
[1752039709147,0.31635957,108950.0,108940.0,0.31449287]
[1752039709344,0.56671382,108950.0,108940.0,0.3006689]
[1752039709547,0.56671382,108950.0,108940.0,0.31450734]
[1752039710642,0.54275382,108950.0,108940.0,0.31450734]
[1752039711045,0.56671382,108950.0,108940.0,0.31450734]
[1752039711345,0.31635957,108950.0,108940.0,0.31450734]
[1752039711544,0.56671382,108950.0,108940.0,0.31450734]
[1752039711853,0.56671382,108950.0,108940.0,0.29799734]
[1752039712051,0.59951382,108950.0,108940.0,0.26709734]
[1752039713447,0.59951382,108950.0,108940.0,0.28234734]
[1752039713754,0.59902382,108950.0,108940.0,0.23679734]
[1752039716369,0.34866957,108950.0,108940.0,0.25204734]
[1752039716549,0.59902382,108950.0,108940.0,0.28434734]
[1752039717053,0.55988382,108950.0,108940.0,0.26909734]
[1752039717361,0.59902382,108950.0,108940.0,0.28434734]
[1752039717855,0.59902382,108950.0,108940.0,0.28440413]
[1752039718553,0.59902382,108950.0,108940.0,0.26915413]
[1752039718858,0.59902382,108950.0,108940.0,0.23685413]
[1752039720650,0.55988382,108950.0,108940.0,0.23685413]
[1752039720856,0.59902382,108950.0,108940.0,0.23685413]
[1752039722856,0.59902382,108950.0,108940.0,0.25210413]
[1752039723055,0.59902382,108950.0,108940.0,0.23685413]
[1752039724261,0.55988382,108950.0,108940.0,0.23685413]
[1752039724450,0.59902382,108950.0,108940.0,0.25210413]
[1752039724852,0.59902382,108950.0,108940.0,0.28440413]
[1752039726755,0.83022382,108950.0,108940.0,0.28440413]
[1752039726957,0.83022382,108950.0,108940.0,0.25210413]
[1752039728762,0.84796404,108950.0,108940.0,0.25210413]
[1752039730965,0.59760979,108950.0,108940.0,0.25210413]
[1752039731160,0.84796404,108950.0,108940.0,0.25210413]
[1752039732564,0.59760979,108950.0,108940.0,0.25210413]
[1752039732761,0.84796404,108950.0,108940.0,0.25210413]
[1752039733154,0.84796404,108950.0,108940.0,0.23685413]
[1752039737069,0.59760979,108950.0,108940.0,0.23685413]
[1752039737265,0.84796404,108950.0,108940.0,0.23685413]
[1752039740463,0.93016668,108950.0,108940.0,0.23685413]
[1752039741269,1.18052093,108950.0,108940.0,0.23685413]
[1752039741770,1.18052093,108950.0,108940.0,0.18924213]
[1752039741771,1.28052093,108950.0,108940.0,0.18924213]
[1752039742172,0.93016668,108950.0,108940.0,0.18924213]
[1752039742872,1.42856668,108950.0,108940.0,0.18924213]
[1752039743370,1.45596756,108950.0,108940.0,0.18924213]
[1752039743860,1.63954357,108950.0,108940.0,0.18924213]
[1752039744676,1.45596756,108950.0,108940.0,0.18924213]
[1752039745182,1.34636404,108950.0,108940.0,0.18924213]
[1752039746174,1.42890915,108950.0,108940.0,0.18924213]
[1752039747274,1.42890915,108950.0,108940.0,0.18953173]
[1752039747464,1.52890915,108950.0,108940.0,0.18953173]
[1752039747973,1.96283941,108950.0,108940.0,0.18953173]
[1752039748165,1.71248516,108950.0,108940.0,0.18953173]
[1752039748368,1.61248516,108950.0,108940.0,0.18953173]
[1752039748669,1.86283941,108950.0,108940.0,0.18953173]
[1752039748970,1.96283941,108950.0,108940.0,0.18953173]
[1752039750070,1.61248516,108950.0,108940.0,0.18953173]
[1752039750577,1.19770915,108950.0,108940.0,0.18953173]
[1752039750763,0.8442149,108950.0,108940.0,0.20530173]
[1752039750968,0.5709749,108950.0,108940.0,0.22865288]
[1752039751167,0.5863349,108950.0,108940.0,0.47471348]
[1752039751669,0.83668915,108950.0,108940.0,0.47471348]
[1752039751970,0.5863749,108950.0,108940.0,0.47471348]
[1752039752572,0.83672915,108950.0,108940.0,0.47471348]
[1752039752969,0.5863749,108950.0,108940.0,0.47471348]
[1752039753370,0.83672915,108950.0,108940.0,0.47471348]
[1752039753769,0.3611749,108950.0,108940.0,0.72506773]
[1752039753978,0.5710149,108950.0,108940.0,0.47471348]
[1752039754175,0.48846979,108950.0,108940.0,0.47471348]
[1752039754572,0.48798979,108950.0,108940.0,0.47471348]
[1752039754878,0.26326979,108950.0,108940.0,0.47471348]
[1752039755074,0.48798979,108950.0,108940.0,0.47471348]
[1752039755379,0.26326979,108950.0,108940.0,0.47471348]
[1752039756483,0.26326979,108950.0,108940.0,0.47446293]
[1752039757377,0.26326979,108950.0,108940.0,0.29090233]
[1752039757581,0.27862979,108950.0,108940.0,0.29090233]
[1752039757776,0.51362404,108950.0,108940.0,0.29090233]
[1752039758176,0.52898404,108950.0,108940.0,0.29090233]
[1752039758574,0.27862979,108950.0,108940.0,0.29090233]
[1752039758770,0.52898404,108950.0,108940.0,0.29090233]
[1752039761881,0.27862979,108950.0,108940.0,0.29090233]
[1752039762072,0.52898404,108950.0,108940.0,0.29090233]
[1752039764382,0.27862979,108950.0,108940.0,0.29090233]
[1752039764582,0.52898404,108950.0,108940.0,0.29090233]
[1752039765778,0.27862979,108950.0,108940.0,0.29090233]
[1752039765972,0.52898404,108950.0,108940.0,0.29090233]
[1752039767775,0.51362404,108950.0,108940.0,0.29174233]
[1752039767981,0.52933404,108950.0,108940.0,0.29174233]
[1752039770982,0.27897979,108950.0,108940.0,0.29174233]
[1752039771181,0.52933404,108950.0,108940.0,0.26702233]
[1752039771881,0.56023404,108950.0,108940.0,0.26702233]
[1752039772888,0.58495404,108950.0,108940.0,0.26702233]
[1752039773787,0.56023404,108950.0,108940.0,0.26702233]
[1752039774287,0.78079404,108950.0,108940.0,0.26702233]
[1752039775083,0.80551404,108950.0,108940.0,0.26702233]
[1752039775583,0.80551404,108950.0,108940.0,0.22054233]
[1752039775783,0.83851404,108950.0,108940.0,0.22054233]
[1752039775980,0.83851404,108950.0,108940.0,0.18914233]
[1752039781484,0.79808404,108950.0,108940.0,0.18914233]
[1752039781678,0.83851404,108950.0,108940.0,0.18914233]
[1752039783786,0.83851404,108950.0,108940.0,0.1753469]
[1752039783985,0.83851404,108950.0,108940.0,0.18930271]
[1752039787888,0.92105915,108950.0,108940.0,0.18930271]
[1752039789491,1.1714134,108950.0,108940.0,0.18930271]
[1752039789692,0.92105915,108950.0,108940.0,0.18930271]
[1752039791090,0.92097915,108950.0,108940.0,0.20468271]
[1752039791987,0.92097915,108950.0,108940.0,0.18930271]
[1752039792383,0.92097915,108950.0,108940.0,0.20468271]
[1752039792583,0.92097915,108950.0,108940.0,0.23468271]
[1752039793186,0.91820755,108950.0,108940.0,0.23468271]
[1752039798001,0.87777755,108950.0,108940.0,0.21930271]
[1752039798192,0.91753755,108950.0,108940.0,0.21930271]
[1752039799194,0.93753755,108950.0,108940.0,0.21930271]
[1752039800196,0.61339755,108950.0,108940.0,0.23433271]
[1752039800400,0.83379755,108950.0,108940.0,0.23433271]
[1752039800598,0.54733244,108950.0,108940.0,0.26743271]
[1752039800791,0.75121244,108950.0,108940.0,0.26743271]
[1752039800996,0.50085819,108950.0,108940.0,0.26743271]
[1752039801202,0.75121244,108950.0,108940.0,0.26743271]
[1752039801400,0.76769244,108950.0,108940.0,0.26743271]
[1752039801604,0.75121244,108950.0,108940.0,0.25240271]
[1752039801805,0.75121244,108950.0,108940.0,0.29054271]
[1752039802204,0.76769244,108950.0,108940.0,0.29054271]
[1752039802510,0.51733819,108950.0,108940.0,0.29054271]
[1752039802700,0.76769244,108950.0,108940.0,0.29054271]
[1752039802902,0.29697819,108950.0,108940.0,0.29054271]
[1752039803205,0.54733244,108950.0,108940.0,0.29054271]
[1752039803803,0.29697819,108950.0,108940.0,0.29054271]
[1752039804003,0.54733244,108950.0,108940.0,0.29054271]
[1752039804203,0.29697819,108950.0,108940.0,0.29054271]
[1752039804503,0.54733244,108950.0,108940.0,0.29054271]
[1752039804906,0.29696574,108950.0,108940.0,0.29054271]
[1752039805203,0.54731999,108950.0,108940.0,0.29054271]
[1752039805698,0.29696574,108950.0,108940.0,0.29054271]
[1752039805898,0.54731999,108950.0,108940.0,0.29054271]
[1752039808216,0.29696574,108950.0,108940.0,0.29054271]
[1752039808416,0.54731999,108950.0,108940.0,0.29054271]
[1752039808718,0.29696574,108950.0,108940.0,0.29054271]
[1752039808922,0.54731999,108950.0,108940.0,0.29054271]
[1752039815719,0.29696574,108950.0,108940.0,0.29054271]
[1752039815921,0.54731999,108950.0,108940.0,0.29054271]
[1752039816121,0.29696574,108950.0,108940.0,0.29054271]
[1752039816322,0.54731999,108950.0,108940.0,0.29054271]
[1752039818221,0.29696574,108950.0,108940.0,0.29054271]
[1752039818420,0.54731999,108950.0,108940.0,0.29054271]
[1752039826429,0.54731999,108950.0,108940.0,0.29037022]
[1752039826931,0.29696574,108950.0,108940.0,0.29037022]
[1752039827130,0.54732238,108950.0,108940.0,0.29037022]
[1752039828720,0.29696574,108950.0,108940.0,0.29037022]
[1752039828922,0.54732238,108950.0,108940.0,0.29037022]
[1752039829330,0.54732238,108950.0,108940.0,0.29037328]
[1752039831036,0.29696574,108950.0,108940.0,0.29037328]
[1752039831239,0.58052238,108950.0,108940.0,0.29037328]
[1752039832428,0.33016574,108950.0,108940.0,0.29037328]
[1752039832645,0.58052238,108950.0,108940.0,0.47393318]
[1752039832932,0.33016574,108950.0,108940.0,0.47393318]
[1752039833134,0.58052238,108950.0,108940.0,0.29037328]
[1752039833335,0.58052238,108950.0,108940.0,0.47393318]
[1752039833933,0.58052238,108950.0,108940.0,0.29037328]
[1752039834636,0.58052238,108950.0,108940.0,0.47393318]
[1752039834933,0.58052238,108950.0,108940.0,0.29038748]
[1752039836031,0.33016574,108950.0,108940.0,0.47394748]
[1752039836230,0.58052238,108950.0,108940.0,0.47394748]
[1752039836529,0.58052238,108950.0,108940.0,0.29038748]
[1752039839130,0.58052238,108950.0,108940.0,0.26727748]
[1752039840230,0.56404238,108950.0,108940.0,0.78580748]
[1752039840435,0.57957238,108950.0,108940.0,0.80158748]
[1752039844040,0.57957238,108950.0,108940.0,1.05194412]
[1752039844239,0.57957238,108950.0,108940.0,0.80158748]
[1752039845839,0.57957238,108950.0,108940.0,0.82458748]
[1752039846034,0.57957238,108950.0,108940.0,0.47458748]
[1752039846339,0.32921574,108950.0,108940.0,0.47458748]
[1752039846641,0.57957238,108950.0,108940.0,0.47458748]
[1752039846844,0.57957238,108950.0,108940.0,0.29102748]
[1752039847141,0.57957238,108950.0,108940.0,0.26802748]
[1752039848042,0.56404238,108950.0,108940.0,0.25224748]
[1752039848340,0.57957238,108950.0,108940.0,0.26802748]
[1752039848536,0.18356,108940.0,108930.0,1.17936892]
[1752039848734,0.18356,108940.0,108930.0,0.96832166]
[1752039848735,0.46917972,108940.0,108930.0,0.96832166]
[1752039849041,0.82539116,108940.0,108930.0,0.98410166]
[1752039849544,0.82539116,108940.0,108930.0,0.97034404]
[1752039849843,0.82539116,108940.0,108930.0,0.92445014]
[1752039850043,0.46917972,108940.0,108930.0,0.92445014]
[1752039850438,0.66201199,108940.0,108930.0,0.92445014]
[1752039850638,0.41165535,108940.0,108930.0,0.92445014]
[1752039850839,0.66201199,108940.0,108930.0,0.92445014]
[1752039851039,0.41165535,108940.0,108930.0,0.92645014]
[1752039851240,0.66201199,108940.0,108930.0,0.92645014]
[1752039851544,0.62674891,108940.0,108930.0,0.98155155]
[1752039851742,0.43391664,108940.0,108930.0,1.24121045]
[1752039852037,0.22203,108940.0,108930.0,1.24121045]
[1752039852238,0.47238664,108940.0,108930.0,1.24321045]
[1752039852444,0.45746336,108940.0,108930.0,1.24321045]
[1752039852644,0.44193336,108940.0,108930.0,1.38012325]
[1752039852846,0.45746336,108940.0,108930.0,1.38012325]
[1752039853348,0.20710672,108940.0,108930.0,1.38012325]
[1752039853539,0.44193336,108940.0,108930.0,1.38012325]
[1752039853739,0.45746336,108940.0,108930.0,1.38012325]
[1752039854040,0.20710672,108940.0,108930.0,1.38012325]
[1752039854342,0.20726672,108940.0,108930.0,1.38012325]
[1752039854645,0.44193336,108940.0,108930.0,1.38012325]
[1752039854846,0.45762336,108940.0,108930.0,1.15369661]
[1752039855149,0.44193336,108940.0,108930.0,1.40405325]
[1752039855341,0.20726672,108940.0,108930.0,1.12980661]
[1752039855544,0.28898664,108940.0,108930.0,1.38016325]
[1752039855743,0.47254664,108940.0,108930.0,1.43492837]
[1752039856049,0.22219,108940.0,108930.0,1.43492837]
[1752039856243,0.47254664,108940.0,108930.0,1.43492837]
[1752039856847,0.47254664,108940.0,108930.0,1.24325045]
[1752039857649,0.47254664,108940.0,108930.0,0.99289381]
[1752039857850,0.47254664,108940.0,108930.0,1.24325045]
[1752039858143,0.22219,108940.0,108930.0,1.24325045]
[1752039858448,0.47254664,108940.0,108930.0,1.24325045]
[1752039858751,0.34856656,108940.0,108930.0,1.43492837]
[1752039858941,0.09820992,108940.0,108930.0,1.45913837]
[1752039859249,0.36425656,108940.0,108930.0,1.45913837]
[1752039859850,0.36425656,108940.0,108930.0,1.20878173]
[1752039860148,0.36425656,108940.0,108930.0,1.45913837]
[1752039860547,0.36425656,108940.0,108930.0,1.47348791]
[1752039861050,0.36425656,108940.0,108930.0,1.22313127]
[1752039861348,0.11389992,108940.0,108930.0,1.47348791]
[1752039861546,0.19894978,108940.0,108930.0,1.47348791]
[1752039861747,0.38250978,108940.0,108930.0,1.47348791]
[1752039861947,0.39819978,108940.0,108930.0,1.45913837]
[1752039862143,0.38250978,108940.0,108930.0,1.47348791]
[1752039862351,0.38250978,108940.0,108930.0,1.61040152]
[1752039862544,0.39819978,108940.0,108930.0,1.4187236]
[1752039862850,0.38250978,108940.0,108930.0,1.28180999]
[1752039863038,0.39845053,108940.0,108930.0,1.28180999]
[1752039863236,0.39919822,108940.0,108930.0,1.28180999]
[1752039863439,0.38350822,108940.0,108930.0,1.28180999]
[1752039865150,0.45060508,108940.0,108930.0,1.28180999]
[1752039865348,0.18455844,108940.0,108930.0,1.28180999]
[1752039865543,0.43491508,108940.0,108930.0,1.28180999]
[1752039866950,0.43491508,108940.0,108930.0,1.03145419]
[1752039867151,0.43491508,108940.0,108930.0,1.28181083]
[1752039867554,0.34629229,108940.0,108930.0,1.28181083]
[1752039868154,0.09593565,108940.0,108930.0,1.28181083]
[1752039868354,0.34629229,108940.0,108930.0,1.28181083]
[1752039868558,0.22231222,108940.0,108930.0,1.28181083]
[1752039868757,0.40587222,108940.0,108930.0,2.00905083]
[1752039868958,0.18356,108940.0,108930.0,1.75869419]
[1752039869159,0.43391664,108940.0,108930.0,2.00905083]
[1752039869551,0.43391664,108940.0,108930.0,2.14596409]
[1752039870246,0.18356,108940.0,108930.0,2.14596409]
[1752039870654,0.43391664,108940.0,108930.0,2.14596409]
[1752039870953,0.44960664,108940.0,108930.0,2.14596409]
[1752039871549,0.44960664,108940.0,108930.0,2.00905083]
[1752039871954,0.44960664,108940.0,108930.0,1.99470129]
[1752039872452,0.44960664,108940.0,108930.0,1.74434465]
[1752039872657,0.44960664,108940.0,108930.0,1.75869419]
[1752039872857,0.44960664,108940.0,108930.0,2.00905083]
[1752039873058,0.44960664,108940.0,108930.0,2.00849083]
[1752039873252,0.48180664,108940.0,108930.0,2.00849083]
[1752039873554,0.48180664,108940.0,108930.0,2.00841083]
[1752039873752,0.73216328,108940.0,108930.0,1.32112089]
[1752039874056,0.76376328,108940.0,108930.0,1.52074753]
[1752039874359,0.51340664,108940.0,108930.0,1.54495753]
[1752039874655,0.51340664,108940.0,108930.0,1.43151722]
[1752039874856,0.51340664,108940.0,108930.0,1.68187386]
[1752039876257,0.51340664,108940.0,108930.0,1.54495753]
[1752039876554,0.51340664,108940.0,108930.0,1.57665753]
[1752039877453,0.26305,108940.0,108930.0,1.57665753]
[1752039877667,0.76376328,108940.0,108930.0,1.57665753]
[1752039878559,0.58020328,108940.0,108930.0,1.57665753]
[1752039878757,0.76376328,108940.0,108930.0,1.71358264]
[1752039879562,0.51340664,108940.0,108930.0,1.71358264]
[1752039880462,0.51340664,108940.0,108930.0,1.65767264]
[1752039880661,0.51340664,108940.0,108930.0,1.68188264]
[1752039882258,0.26305,108940.0,108930.0,1.68188264]
[1752039882458,0.44047388,108940.0,108930.0,1.431526]
[1752039882762,0.44047388,108940.0,108930.0,1.74318264]
[1752039885561,0.44047388,108940.0,108930.0,1.85272635]
[1752039885767,0.19011724,108940.0,108930.0,1.71580124]
[1752039885958,0.44047388,108940.0,108930.0,1.71580124]
[1752039886359,0.69083052,108940.0,108930.0,1.71580124]
[1752039886966,0.69083052,108940.0,108930.0,1.4654446]
[1752039887154,0.72373052,108940.0,108930.0,1.71580124]
[1752039887358,0.72373052,108940.0,108930.0,1.4654446]
[1752039887554,0.72373052,108940.0,108930.0,1.71580124]
[1752039888366,0.72373052,108940.0,108930.0,1.70720786]
[1752039888960,0.72373052,108940.0,108930.0,1.68720786]
[1752039889568,0.72373052,108940.0,108930.0,1.43685122]
[1752039889772,0.72373052,108940.0,108930.0,1.68720786]
[1752039890165,0.72373052,108940.0,108930.0,1.43685122]
[1752039891865,0.22301724,108940.0,108930.0,1.43685122]
[1752039892066,0.72373052,108940.0,108930.0,1.43685122]
[1752039895374,0.72373052,108940.0,108930.0,1.68720786]
[1752039896174,0.72373052,108940.0,108930.0,1.43685122]
[1752039898170,0.72373052,108940.0,108930.0,1.32730751]
[1752039898471,0.22301724,108940.0,108930.0,1.32730751]
[1752039898672,0.22301724,108940.0,108930.0,1.43685122]
[1752039898673,0.72373052,108940.0,108930.0,1.43685122]
[1752039900671,0.44047388,108940.0,108930.0,2.03720786]
[1752039900981,0.18414783,108940.0,108930.0,2.03720786]
[1752039901275,0.2663143,108950.0,108940.0,0.1835601]
[1752039901276,0.62353884,108950.0,108940.0,0.1835601]
[1752039901574,0.62353884,108950.0,108940.0,1.02748059]
[1752039901776,0.62353884,108950.0,108940.0,0.91793515]
[1752039902069,0.2957928,108950.0,108940.0,1.16829179]
[1752039902575,0.54614944,108950.0,108940.0,1.16829179]
[1752039902775,0.54714944,108950.0,108940.0,0.66757851]
[1752039902979,0.54714944,108950.0,108940.0,1.16829179]
[1752039903175,0.54714944,108950.0,108940.0,1.16929179]
[1752039904478,0.54714944,108950.0,108940.0,1.27883723]
[1752039904676,0.2957928,108950.0,108940.0,1.17029179]
[1752039904877,0.02046,108950.0,108940.0,1.27983723]
[1752039905077,0.01730074,108960.0,108950.0,0.1835432]
[1752039905278,0.1835264,108960.0,108950.0,2.83249327]
[1752039905579,0.43388304,108960.0,108950.0,2.20380711]
[1752039905776,0.43388304,108960.0,108950.0,2.50416375]
[1752039905972,0.1835264,108960.0,108950.0,2.50416375]
[1752039906179,0.1835264,108960.0,108950.0,2.83659263]
[1752039906382,0.52563534,108970.0,108960.0,0.1835264]
[1752039906575,0.52563534,108970.0,108960.0,0.65072021]
[1752039906772,0.43387664,108970.0,108960.0,0.92409421]
[1752039906967,0.18352,108970.0,108960.0,0.92409421]
[1752039907169,0.43387664,108970.0,108960.0,0.92409421]
[1752039907574,0.43387664,108970.0,108960.0,1.00616645]
[1752039907775,0.43587664,108970.0,108960.0,1.00616645]
[1752039907977,0.43787664,108970.0,108960.0,0.70109577]
[1752039908678,0.18552,108970.0,108960.0,1.32245241]
[1752039908876,0.43587664,108970.0,108960.0,0.95245241]
[1752039909272,0.18352,108970.0,108960.0,0.95245241]
[1752039909472,0.18352,108970.0,108960.0,0.95345241]
[1752039910382,0.18352,108970.0,108960.0,1.17441131]
[1752039911175,0.18352,108970.0,108960.0,1.09233907]
[1752039911377,0.18352,108970.0,108960.0,1.20188451]
[1752039911782,0.18352,108970.0,108960.0,0.70117123]
[1752039911983,0.18352,108970.0,108960.0,1.20188451]
[1752039912588,0.43387664,108970.0,108960.0,1.56188451]
[1752039912882,0.25035664,108970.0,108960.0,1.20188451]
[1752039913087,0.25035664,108970.0,108960.0,0.70117123]
[1752039913290,0.25035664,108970.0,108960.0,1.20188451]
[1752039913589,0.55631234,108980.0,108970.0,0.1835095]
[1752039913779,0.55446365,108980.0,108970.0,2.15148075]
[1752039913974,0.55446365,108980.0,108970.0,2.17450075]
[1752039914179,0.56964365,108980.0,108970.0,2.11991997]
[1752039914582,0.57064365,108980.0,108970.0,2.11991997]
[1752039914780,0.82100029,108980.0,108970.0,2.11991997]
[1752039914983,0.82100029,108980.0,108970.0,1.86956333]
[1752039915291,0.82100029,108980.0,108970.0,2.14507065]
[1752039915482,0.82100029,108980.0,108970.0,2.15227517]
[1752039916284,0.82100029,108980.0,108970.0,2.07040399]
[1752039917593,0.82100029,108980.0,108970.0,0.62311947]
[1752039917893,0.85210029,108980.0,108970.0,1.05666997]
[1752039918188,1.12575693,108980.0,108970.0,0.33734997]
[1752039918594,1.80651693,108980.0,108970.0,0.37824418]
[1752039918890,1.80651693,108980.0,108960.0,0.1007959]
[1752039918891,0.1835432,108950.0,108940.0,0.10954544]
[1752039919083,0.68524336,108950.0,108940.0,0.10769675]
[1752039919392,0.74644336,108950.0,108940.0,0.10769675]
[1752039919596,0.24573008,108950.0,108940.0,0.31376939]
[1752039919891,0.49608672,108950.0,108940.0,0.56412603]
[1752039920083,0.46498672,108950.0,108940.0,0.34546939]
[1752039920277,0.46498672,108950.0,108940.0,0.35346939]
[1752039920491,0.18453008,108950.0,108940.0,0.88538267]
[1752039920692,0.25134352,108950.0,108940.0,0.27297264]
[1752039920986,0.00098688,108950.0,108940.0,1.325063]
[1752039921187,0.18453008,108950.0,108940.0,1.325063]
[1752039921490,0.00098688,108950.0,108940.0,1.325063]
[1752039921690,0.18453008,108950.0,108940.0,1.325063]
[1752039921891,0.18453008,108950.0,108940.0,1.29572686]
[1752039922287,0.20054008,108950.0,108940.0,1.30124686]
[1752039922477,0.18453008,108950.0,108940.0,1.30224686]
[1752039922689,0.20054008,108950.0,108940.0,1.30224686]
[1752039922893,0.18453008,108950.0,108940.0,1.30224686]
[1752039923405,0.18453008,108950.0,108940.0,0.8335819]
[1752039923608,0.18453008,108950.0,108940.0,1.5676819]